Cogmind - Beta 15 @@@ ROGUE MODE // 2025.07.04 @ 19:51:16 Player: beans Result: Self-destructed Performance ------------- Evolutions (1) 500 Regions Visited (3) 600 Robots Destroyed (14) 70 Value Destroyed (342) 342 Prototype IDs (0) 0 Alien Tech Used (0) 0 Bonus (0) 0 TOTAL SCORE: 1512 Bonus ------- None Cogmind --------- Core Integrity 400/400 Matter 181/300 Energy 100/100 System Corruption 0% Temperature Cool (0) Movement Core (400) Ox7 Location -9/Materials Parts ------- > --- POWER (1) -------- (None) > --- PROPULSION (2) --- (None) > --- UTILITY (2) ------ Large Storage Unit > --- WEAPON (4) ------- Light Assault Rifle Light Assault Rifle > --- INVENTORY (15) --- (None) Peak State ------------ > --- POWER ------------ Ion Engine > --- PROPULSION ------- Light Treads Light Treads > --- UTILITY ---------- ECM Suite > --- WEAPON ----------- EM Pulse Gun Medium Laser > --- INVENTORY -------- (None) [Rating: 6] Favorites ----------- Power Ion Engine Engine Ion Engine Propulsion Light Treads Treads Light Treads Utility Large Storage Unit Device ECM Suite Storage Large Storage Unit Processor Visual Processing Unit Weapon Medium Laser Energy Gun Medium Laser Ballistic Gun Light Assault Rifle Launcher Rocket Launcher Special Weapon Mining Laser Build | -11 -10 -10 -9 ------- Run | Yrd Mat Min Mat Slots Evolved 2 | . . . 2 Power . | . . . . Propulsion . | . . . . Utility . | . . . . Weapon 2 | . . . 2 Parts Attached 12 | 5 4 3 . Power 1 | 1 . . . Engine 1 | 1 . . . Core . | . . . . Reactor . | . . . . Propulsion 2 | 2 . . . Treads 2 | 2 . . . Leg . | . . . . Wheel . | . . . . Hover . | . . . . Flight . | . . . . Utility 3 | . 3 . . Device 1 | . 1 . . Storage 1 | . 1 . . Processor 1 | . 1 . . Hackware . | . . . . Protection . | . . . . Artifact . | . . . . Weapon 6 | 2 1 3 . Energy Gun 2 | 2 . . . Energy Cannon . | . . . . Ballistic Gun 2 | . . 2 . Ballistic Cannon . | . . . . Launcher 1 | . . 1 . Special Weapon 1 | . 1 . . Impact Weapon . | . . . . Slashing Weapon . | . . . . Piercing Weapon . | . . . . Special Melee Weapon . | . . . . Unidentified Prototypes . | . . . . Parts Lost 9 | . 8 1 . Power 1 | . 1 . . Propulsion 2 | . 2 . . Utility 2 | . 2 . . Weapon 4 | . 3 1 . Highest Loss Streak 4 | . 4 1 . To Critical Strikes 1 | . 1 . . Average Backups . | . . . . Power . | . . . . Propulsion . | . . . . Utility . | . . . . Weapon . | . . . . Tool/Special . | . . . . Unused Backups . | . . . . Power . | . . . . Propulsion . | . . . . Utility . | . . . . Weapon . | . . . . Tool/Special . | . . . . Average Slot Usage (%) 46 | . 57 25 31 Engine 4 | . 6 . . Treads 13 | . 22 . . Device 3 | . 5 . . Storage 5 | . . 14 11 Processor 1 | . 2 . . Energy Gun 10 | . 17 . . Ballistic Gun 5 | . . 8 20 Peak Build Rating 6 | 5 6 3 3 Average Rating 3 | 4 4 2 2 On Entrance 2 | . 5 1 3 Naked Turns 34 | . 34 . . Heaviest Build 24 | 9 20 24 22 Greatest Support 40 | 40 40 3 3 Greatest Overweight (x) 7 | 1 6 7 7 Average Overweight (x) 1 | . . 6 6 Largest Inventory Capacity 15 | 5 15 15 15 Average Capacity 8 | 5 5 15 15 Most Carried 2 | 2 1 2 2 Average Carried . | . . . . Final Capacity 15 | 5 15 15 15 Final Carried . | . . . . Class Distribution -------------------- 100% | Mutant Dominant Class ---------------- Mutant | -10/Materials Mutant | -10/Mines Mutant | -9/Materials Resources | -11 -10 -10 -9 ----------- Run | Yrd Mat Min Mat Matter Collected 295 | 250 25 20 . Remotely . | . . . . Salvage Created 241 | . 176 65 . Parts 20 | . 14 6 . Haulers Intercepted . | . . . . Recyclers Shooed . | . . . . Parts Field Recycled . | . . . . Retrieved Matter . | . . . . Parts Self-Destructed . | . . . . Prevented . | . . . . Kills | -11 -10 -10 -9 ------- Run | Yrd Mat Min Mat Combat Hostiles Destroyed 11 | . 6 5 . Melee 1 | . 1 . . Guns 3 | . 3 . . Cannons 2 | . 2 . . AOE 5 | . . 5 . Classes Destroyed 5 | . 5 . . Worker 1 | . 1 . . Builder 1 | . 1 . . Watcher 1 | . 1 . . Swarmer 5 | . 2 3 . Grunt 6 | . 4 2 . Best Kill Streak 5 | . 3 5 . Combat Bots Only 5 | . 3 5 . Max Kills in Single Turn 1 | . 1 1 . Gunslinging . | . . . . Exploded 1 | . . 1 . Melee 1 | . 1 . . Uniques/NPCs Destroyed . | . . . . Combat | -11 -10 -10 -9 -------- Run | Yrd Mat Min Mat Hostile Shots Fired 105 | . 83 22 . Missed 28 | . 21 7 . Hits 77 | . 62 15 . Projectile 77 | . 62 15 . Critical Strikes 2 | . 2 . . Damage Taken 973 | . 691 282 . Core 244 | . 146 98 . Absorbed by Shields . | . . . . Core Remaining (%) 51 | 100 . 2 . Volleys Fired 36 | . 29 7 . Largest 2 | . 2 1 . Hottest 100 | . 100 33 . Shots Fired 44 | . 36 8 . Gun 33 | . 32 1 . Cannon . | . . . . Launcher 7 | . . 7 . Special 4 | . 4 . . Kinetic 1 | . . 1 . Thermal 29 | . 29 . . Explosive 7 | . . 7 . Electromagnetic 7 | . 7 . . Robot Hit Streak 6 | . 6 1 . Robot Miss Streak 2 | . 2 1 . Penetration Max . | . . . . Secondary Targets . | . . . . Shots Hit Robots 24 | . 22 2 . Core Hits 18 | . 12 6 . Critical Kills . | . . . . Critical Parts Destroyed . | . . . . Critical Strikes . | . . . . Melee Attacks . | . . . . Impact . | . . . . Slashing . | . . . . Piercing . | . . . . Sneak Attacks . | . . . . Combat Hostiles . | . . . . Follow-up Attacks . | . . . . Damage Inflicted 690 | . 380 310 . Guns 260 | . 260 . . Cannons . | . . . . Explosions 349 | . 39 310 . Melee . | . . . . Ramming 9 | . 9 . . Kinetic . | . . . . Thermal 311 | . 311 . . Explosive 310 | . . 310 . Electromagnetic 60 | . 60 . . Impact . | . . . . Slashing . | . . . . Piercing . | . . . . Highest Corruption 4 | . . 4 . Average Corruption 4 | . . 4 . Corruption Purged . | . . . . Corruption Blocked . | . . . . Effects 3 | . . 3 . Matter Fused 1 | . . 1 . Heat Flow Errors 1 | . . 1 . Misfires 1 | . . 1 . Overload Shots . | . . . . Overflow Damage 3 | . . 3 . Projectiles . | . . . . Explosions 3 | . . 3 . Melee . | . . . . Knockbacks . | . . . . Impact . | . . . . Kinetic . | . . . . Secondary . | . . . . Self-Inflicted Damage 16 | . . 16 . Shots 1 | . . 1 . Rammed 7 | . 7 . . Targets Rammed 8 | . 8 . . Kicked . | . . . . Crushed 1 | . 1 . . Highest Temperature 271 | . 271 155 . Average Temperature 134 | . 135 117 . Received Heat Transfer 435 | . 348 87 . Effects 1 | . 1 . . Interference 1 | . 1 . . Siege Activations . | . . . . Martial Activations . | . . . . Shielding Activations . | . . . . Robots Disrupted . | . . . . Combat Hostiles . | . . . . Robots Corrupted . | . . . . Combat Hostiles . | . . . . Parts Fried . | . . . . Impact Corruptions . | . . . . Robots Melted . | . . . . Combat Hostiles . | . . . . Parts Melted . | . . . . Heat Transferred 792 | . 792 . . Parts Sabotaged . | . . . . Parts Stolen . | . . . . Parts Stripped . | . . . . Power Chain Reactions 1 | . 1 . . Alert | -11 -10 -10 -9 ------- Run | Yrd Mat Min Mat Maximum Alert Level 1 | . . 1 . Low Security (%) 99 | 100 100 95 100 Level 1 . | . . 4 . Level 2 . | . . . . Level 3 . | . . . . Level 4 . | . . . . Level 5 . | . . . . High Security . | . . . . Max Security . | . . . . Peak Influence 207 | . 70 207 57 Initial 57 | . . 12 57 Average 36 | . 17 128 23 Influence Increases 423 | . 208 215 . Destroy 0b10 Robot/C 220 | . 120 100 . Destroy 0b10 Robot/NC 15 | . 15 . . Destroy Leader 42 | . 22 20 . Disable Machine 60 | . . 60 . Destroy Structure 41 | . 6 35 . Lose Combat Pursuer 45 | . 45 . . Influence Decreases 423 | . 177 99 147 Entered New Map 109 | . . 19 90 Time Decay 260 | . 133 70 57 Lost Part 54 | . 44 10 . Squads Dispatched 2 | . 2 . . Investigation 1 | . 1 . . Extermination . | . . . . Reinforcement 1 | . 1 . . Assault . | . . . . Garrison . | . . . . Intercept . | . . . . Searches Triggered . | . . . . Construction Impeded . | . . . . Haulers Reinforced . | . . . . Active Scanning Responses . | . . . . Cargo Convoy Interrupts . | . . . . Stealth | -11 -10 -10 -9 --------- Run | Yrd Mat Min Mat Distress Signals 3 | . 3 . . Communications Jammed . | . . . . Distress Signals . | . . . . Times Spotted 21 | . 16 5 . Peak Tracking Total 4 | . 4 3 . Tactical Retreats 1 | . 1 . . Traps | -11 -10 -10 -9 ------- Run | Yrd Mat Min Mat Traps Triggered 2 | . 1 . 1 Indirectly . | . . . . Trap Hack Attempts . | . . . . Triggered . | . . . . Disarmed . | . . . . Reprogrammed . | . . . . Reused . | . . . . Traps Extracted . | . . . . Installed . | . . . . Triggered . | . . . . Machines | -11 -10 -10 -9 ---------- Run | Yrd Mat Min Mat Machines Disabled 4 | . . 4 . Max in Single Turn 2 | . . 2 . Machines Repaired . | . . . . Machines Dismantled . | . . . . Machines Sabotaged . | . . . . Overloaded Fab Kills . | . . . . Hacking | -11 -10 -10 -9 --------- Run | Yrd Mat Min Mat Machines Accessed . | . . . . Terminals . | . . . . Fabricators . | . . . . Repair Stations . | . . . . Recycling Units . | . . . . Scanalyzers . | . . . . Garrison Access . | . . . . Total Hacks . | . . . . Successful . | . . . . Failed . | . . . . Catastrophic . | . . . . Database Lockouts . | . . . . Manual . | . . . . Terminals . | . . . . Fabricators . | . . . . Repair Stations . | . . . . Recycling Units . | . . . . Scanalyzers . | . . . . Garrison Access . | . . . . Terminal Hacks . | . . . . Fabricator Hacks . | . . . . Repair Station Hacks . | . . . . Recycling Unit Hacks . | . . . . Scanalyzer . | . . . . Garrison Access Hacks . | . . . . Unauthorized Hacks . | . . . . Terminals . | . . . . Fabricators . | . . . . Repair Stations . | . . . . Recycling Units . | . . . . Scanalyzers . | . . . . Garrison Access . | . . . . Data Cores Recovered . | . . . . Used . | . . . . Hacking Detections . | . . . . Full Trace Events . | . . . . Feedback Events . | . . . . Feedback Blocked . | . . . . Robot Schematics Acquired . | . . . . Robots Built . | . . . . Authchips . | . . . . Time . | . . . . Total Robot Build Rating . | . . . . Part Schematics Acquired . | . . . . Parts Built . | . . . . Authchips . | . . . . Time . | . . . . Total Part Build Rating . | . . . . Parts Repaired . | . . . . Time . | . . . . Parts Recycled . | . . . . Recycled Matter . | . . . . Retrieved Matter . | . . . . Retrieved Components . | . . . . Parts Scanalyzed . | . . . . Part Schematics Acquired . | . . . . Parts Damaged . | . . . . Bothacking | -11 -10 -10 -9 ------------ Run | Yrd Mat Min Mat Used RIF Installer . | . . . . Robots Hacked . | . . . . Non-combat . | . . . . Combat . | . . . . Robot Hacks Applied . | . . . . Relay Couplers Released . | . . . . Fabnet Peak Effective % . | . . . . Robots Rewired . | . . . . Allies Hacked . | . . . . Hacks Repelled . | . . . . Allies | -11 -10 -10 -9 -------- Run | Yrd Mat Min Mat Total Allies . | . . . . Largest Group . | . . . . Highest-Rated Group . | . . . . Highest-Rated Ally . | . . . . Total Orders . | . . . . Ally Attacks . | . . . . Total Damage . | . . . . Kills . | . . . . Allies Corrupted . | . . . . Allies Melted . | . . . . Intel | -11 -10 -10 -9 ------- Run | Yrd Mat Min Mat Active Infowar (turns) 314 | . 314 . . Optics 109 | . 109 . . ECM 205 | . 205 . . Robot Analysis Total . | . . . . Derelict Logs Recovered . | . . . . Drone Launches . | . . . . Drone Recoveries . | . . . . Exploration | -11 -10 -10 -9 ------------- Run | Yrd Mat Min Mat Turns Passed 897 | 65 513 155 164 Spaces Moved 429 | 41 311 37 40 Core 210 | 10 123 37 40 Treads 219 | 31 188 . . Legs . | . . . . Wheels . | . . . . Hover . | . . . . Flight . | . . . . Fastest Speed 50 | 50 50 350 350 Average Speed 174 | 138 126 374 398 Slowest Speed 400 | 160 350 400 400 Overloaded Moves . | . . . . Propulsion Burnouts . | . . . . Robots Hopped . | . . . . Potential Cave-ins . | . . . . Cave-ins Triggered 1 | . . 1 . Exploration Rate (%) 22 | 5 62 16 6 Regions Visited 3 Branch Regions 1 Pre-discovered Areas . | . . . . Known Exits Taken . | . . . . Unknown Exits Taken 3 | 1 1 1 . Scrap Searched . | . . . . Spaces Dug . | . . . . Terrain Destroyed 55 | . 6 49 . Melee . | . . . . Projectile 1 | . 1 . . AOE 54 | . 5 49 . Terrain Rammed . | . . . . Walls Destroyed . | . . . . Machines Disabled . | . . . . Actions | -11 -10 -10 -9 --------- Run | Yrd Mat Min Mat Total 528 | 50 385 49 44 Wait 30 | . 30 . . Move 426 | 40 310 36 40 Hop . | . . . . Pick Up 14 | 5 4 3 2 Fast Attach . | . . . . Attach 14 | 5 4 3 2 Detach . | . . . . Swap . | . . . . Drop . | . . . . Fire 36 | . 29 7 . Melee . | . . . . Ram . | . . . . Kick . | . . . . Crush 8 | . 8 . . Escape Stasis . | . . . . Rewire . | . . . . Trap . | . . . . Miscellaneous . | . . . . Route ------- -11/Scrapyard -10/Materials (discovered 3 exits: [*Mat x2] / [*Min]) -10/Mines -9/Materials History --------- Turn | Location | Event 26 | -11/Scrapyard | Discovered new exit (range 16) 66 | -11/Scrapyard | Entered Materials 301 | -10/Materials | Build established: Mutant 345 | -10/Materials | Lost 3 parts (1p1u1w) 408 | -10/Materials | Discovered new exit (range 18) 508 | -10/Materials | Lost 4 parts (2n1u1w) 522 | -10/Materials | Discovered new exit (range 5) 542 | -10/Materials | Discovered new exit (range 11) 567 | -10/Materials | Core integrity fell below 50% 579 | -10/Materials | Entered Mines 593 | -10/Mines | Received a Rocket Launcher from a helpful Derelict 604 | -10/Mines | Core integrity fell below 20% 636 | -10/Mines | Crushed by falling debris 650 | -10/Mines | Discovered new exit (range 13) 734 | -10/Mines | Entered Materials 734 | -9/Materials | Evolved 2 slots: Weapon x2 898 | -9/Materials | Self-destructed Last Messages --------------- U-05 Engineer lays Concrete. K-01 Serf collects debris. U-05 Engineer builds a Wall. K-01 Serf collects debris. U-05 Engineer lays Concrete. U-05 Engineer builds a Wall. K-01 Serf cleans the Core Extractor. System corrupted: Heat flow error (+180). U-05 Engineer lays Concrete. K-01 Serf collects debris. U-05 Engineer lays Concrete. PARAMETERS=WEAPON+2 LOCATION=UNKNOWN GOAL=ESCAPE Triggered Blade Trap. Massive razor-sharp blades shoot up from within the floor. Lgt. Assault Rifle severed. Acquired Lgt. Assault Rifle. K-01 Serf collects debris. Map ----- +----------------------------------------------------+ | ?????????????????????????????????????????????????? | | ?????????????????????????????????????????????????? | | ?????????????????????????????????????????????????? | | ?????????????????????????????????????????????????? | | ?????????????????????????????????????????????????? | | ?????????????????????????????????????????????????? | | ?????????????????????????????????????????????????? | | ?????????????????????????????????????????????????? | | ?????????????????????????????????????????????????? | | ?????????????????????????????????????????????????? | | ?????????????????????????????????????????????????? | | ?????????????????????????????????????????????????? | | ?????????????????????????????????????????????????? | | ?????????????????????????????????????????????????? | | ??????????????????????????????? ?????????????????? | | ??????????????????????????????? ?????????????????? | | ??????????????????????????????? ?????????????????? | | ??????????????????????????????? ?????????????????? | | ??????????????????????????????# ?????????????????? | | ??????????????????????????????# ?????????????????? | | ??????????????????????????????# ????+#???????????? | | ??????????????????????????????# #??? ???????????? | | ??????????????????????????????# ## ????????????? | | ????????????????????????####### ## "????????????? | | ????????????????????????#! # ## "????????????? | | ????????????????????????#@ k# +? ""???????????? | | ????????????????????????# # #?? ?#######??? | | ????????????????????????# # #####+## #??? | | ????????????????????????# """ # ^ #??? | | ????????????????????????# """ + ^ " #??? | | ????????????????????????# """ # #??? | | ????????????????????????# ########+## #??? | | ????????????????????????# """ #??# ## ##??? | | ????????????????????????# """ #??# ## #???? | | ????????????????????????# """ #??# ## #???? | | ????????????????????????# #??#/!! ## #???? | | ????????????????????????#######??#/! ## #???? | | ?????????????????????????????????#!! ## #???? | | ?????????????????????????????????######### #???? | | ?????????????????????????????????????????# #???? | | ?????????????????????????????????????????# #???? | | ?????????????????????????????????????????# #???? | | ?????????????????????????????????????????# #???? | | ?????????????????????????????????????????# #???? | | ?????????????????????????????????????????# #???? | | ?????????????????????????????????????????# #???? | | ?????????????????????????????????????????# #???? | | ?????????????????????????????????????????#####???? | | ?????????????????????????????????????????????????? | | ?????????????????????????????????????????????????? | +----------------------------------------------------+ Best States ------------- Heat Dissipation 28 Energy Generation 10 Energy Capacity 250 Matter Stores 300 Matter Capacity 300 Sight Range 18 Terrain Scan Density 10 ECM Strength 1 Evasion (%) 50 Recoil Reduction 2 Item Schematics ----------------- None Robot Schematics ------------------ None Fabricated ------------ Nothing Repaired ---------- Nothing Alien Tech Used ----------------- None Achievements -------------- None Challenges ------------ None Game ------ Seed ReactionDiametricInterrupter Manual? 0 Play Time 00:04:55 Cumulative 38.6 hours Start 2025.07.04 @ 19:46:41 End 2025.07.04 @ 19:51:16 Sessions 1 Manual Loads 0 Difficulty Rogue Special Mode None Game No. 183 Rogue 183 Adventurer 0 Explorer 0 Win Type - Total 0 Types 0/0/0/0/0/0/0/0/0/0 Lore% 28 Gallery% 24 Achievement% 20 Wizard Run 0 Options --------- Layout 2 ASCII 0 Keyboard 0 Movement Mouse Keybinds 0 Fullscreen 1 Font 24/Smallcaps Map View 50x44 Zoom Use 0% Tactical HUD 0 Map Filters NONE Filters NONE Steam 1 RUN: f5ae274d-8ff6-4553-8f2f-d7c86d7ea79a